[Event "December 5 Early 2023"]
[Site "https://www.chess.com"]
[Date "2023.12.05"]
[Round "8"]
[White "Vokhidov, Shamsiddin"]
[Black "Fier, Alexandr"]
[Result "1-0"]
[Board "25"]
[TimeControl "180+1"]
[WhiteFideId "14204223"]
[BlackFideId "2107139"]
[WhiteElo "2911"]
[BlackElo "2754"]
[WhiteTeam "UZB"]
[BlackTeam "BRA"]
[WhiteClock "0:02:59"]
[BlackClock "0:02:44"]

1. e4 {[%clk 0:03:00]}  Nf6 {[%clk 0:02:58]} 2. e5 {[%clk 0:03:01]}  Nd5 {[%clk 0:02:59]} 3. d4 {[%clk 0:03:02]}  d6 {[%clk 0:02:59]} 4. Nf3 {[%clk 0:03:02]}  g6 {[%clk 0:02:59]} 5. Bc4 {[%clk 0:03:02]}  Nb6 {[%clk 0:02:59]} 6. Bb3 {[%clk 0:03:03]}  Bg7 {[%clk 0:03:00]} 7. Qe2 {[%clk 0:03:03]}  O-O {[%clk 0:02:59]} 8. h3 {[%clk 0:03:04]}  c5 {[%clk 0:02:59]} 9. dxc5 {[%clk 0:03:03]}  dxc5 {[%clk 0:02:59]} 10. O-O {[%clk 0:03:04]}  c4 {[%clk 0:03:00]} 11. Bxc4 {[%clk 0:03:04]}  Nxc4 {[%clk 0:03:01]} 12. Qxc4 {[%clk 0:03:04]}  Nc6 {[%clk 0:03:02]} 13. Re1 {[%clk 0:03:04]}  Bf5 {[%clk 0:03:01]} 14. c3 {[%clk 0:03:05]}  Nxe5 {[%clk 0:02:44]} 15. Nxe5 {[%clk 0:02:59]} 1-0

[Event "December 5 Early 2023"]
[Site "https://www.chess.com"]
[Date "2023.12.05"]
[Round "8"]
[White "Harutjunyan, Gevorg"]
[Black "Sahakyan, Aleks"]
[Result "1-0"]
[Board "28"]
[TimeControl "180+1"]
[WhiteFideId "13300873"]
[BlackFideId "13316338"]
[WhiteElo "2889"]
[BlackElo "2732"]
[WhiteTeam "ARM"]
[BlackTeam "ARM"]
[WhiteClock "0:00:13"]
[BlackClock "0:00:01"]

1. d4 {[%clk 0:03:00]}  Nf6 {[%clk 0:02:59]} 2. Nf3 {[%clk 0:03:00]}  d5 {[%clk 0:02:59]} 3. g3 {[%clk 0:03:00]}  g6 {[%clk 0:02:55]} 4. Bg2 {[%clk 0:03:00]}  Bg7 {[%clk 0:02:55]} 5. O-O {[%clk 0:03:01]}  O-O {[%clk 0:02:56]} 6. c4 {[%clk 0:03:02]}  c6 {[%clk 0:02:55]} 7. Qb3 {[%clk 0:03:02]}  dxc4 {[%clk 0:02:51]} 8. Qxc4 {[%clk 0:03:03]}  Be6 {[%clk 0:02:40]} 9. Qd3 {[%clk 0:03:03]}  Bf5 {[%clk 0:02:40]} 10. Qb3 {[%clk 0:02:59]}  Qb6 {[%clk 0:02:27]} 11. Nbd2 {[%clk 0:02:59]}  Na6 {[%clk 0:02:17]} 12. Nc4 {[%clk 0:02:45]}  Qxb3 {[%clk 0:02:17]} 13. axb3 {[%clk 0:02:46]}  Rfd8 {[%clk 0:02:05]} 14. Nfe5 {[%clk 0:02:42]}  Nb4 {[%clk 0:02:01]} 15. e3 {[%clk 0:02:32]}  Nd7 {[%clk 0:01:25]} 16. Nxd7 {[%clk 0:02:12]}  Rxd7 {[%clk 0:01:25]} 17. Bd2 {[%clk 0:02:12]}  Nc2 {[%clk 0:01:17]} 18. Ra5 {[%clk 0:02:07]}  Bd3 {[%clk 0:00:51]} 19. Rc1 {[%clk 0:02:06]}  Bxd4 {[%clk 0:00:50]} 20. exd4 {[%clk 0:01:41]}  Nxd4 {[%clk 0:00:51]} 21. Ne5 {[%clk 0:01:41]}  Ne2+ {[%clk 0:00:50]} 22. Kh1 {[%clk 0:01:40]}  Nxc1 {[%clk 0:00:45]} 23. Nxd7 {[%clk 0:01:36]}  Nxb3 {[%clk 0:00:46]} 24. Ra3 {[%clk 0:01:37]}  Nxd2 {[%clk 0:00:43]} 25. Rxd3 {[%clk 0:01:36]}  Nc4 {[%clk 0:00:43]} 26. Rb3 {[%clk 0:01:25]}  Nb6 {[%clk 0:00:11]} 27. Nc5 {[%clk 0:01:18]}  Rd8 {[%clk 0:00:10]} 28. Bf1 {[%clk 0:01:14]}  Rd2 {[%clk 0:00:09]} 29. Kg1 {[%clk 0:01:09]}  Kg7 {[%clk 0:00:04]} 30. Nxb7 {[%clk 0:01:00]}  Na4 {[%clk 0:00:04]} 31. Na5 {[%clk 0:01:01]}  Nxb2 {[%clk 0:00:03]} 32. Nxc6 {[%clk 0:01:01]}  e6 {[%clk 0:00:02]} 33. Nxa7 {[%clk 0:01:01]}  Rc2 {[%clk 0:00:01]} 34. Nb5 {[%clk 0:01:00]}  Nd1 {[%clk 0:00:01]} 35. Nd6 {[%clk 0:00:59]}  Nxf2 {[%clk 0:00:01]} 36. Rb7 {[%clk 0:00:58]}  Ng4 {[%clk 0:00:01]} 37. Rxf7+ {[%clk 0:00:59]}  Kh6 {[%clk 0:00:01]} 38. h3 {[%clk 0:00:45]}  Ne5 {[%clk 0:00:01]} 39. Rf2 {[%clk 0:00:43]}  Rxf2 {[%clk 0:00:02]} 40. Kxf2 {[%clk 0:00:43]}  Kg7 {[%clk 0:00:03]} 41. Ke3 {[%clk 0:00:42]}  Nd7 {[%clk 0:00:02]} 42. Bc4 {[%clk 0:00:41]}  Kf6 {[%clk 0:00:02]} 43. Ne4+ {[%clk 0:00:41]}  Ke5 {[%clk 0:00:02]} 44. Ng5 {[%clk 0:00:41]}  Nf8 {[%clk 0:00:02]} 45. h4 {[%clk 0:00:39]}  Kf6 {[%clk 0:00:01]} 46. Kf4 {[%clk 0:00:38]}  h6 {[%clk 0:00:01]} 47. Ne4+ {[%clk 0:00:38]}  Ke7 {[%clk 0:00:02]} 48. Nc5 {[%clk 0:00:38]}  Kd6 {[%clk 0:00:02]} 49. Nd3 {[%clk 0:00:36]}  Nd7 {[%clk 0:00:03]} 50. Bb5 {[%clk 0:00:32]}  Nf6 {[%clk 0:00:03]} 51. Kf3 {[%clk 0:00:28]}  e5 {[%clk 0:00:03]} 52. Nf2 {[%clk 0:00:28]}  Kd5 {[%clk 0:00:03]} 53. Bd3 {[%clk 0:00:28]}  g5 {[%clk 0:00:03]} 54. hxg5 {[%clk 0:00:29]}  hxg5 {[%clk 0:00:04]} 55. Bf5 {[%clk 0:00:25]}  Kd4 {[%clk 0:00:03]} 56. g4 {[%clk 0:00:21]}  Ne8 {[%clk 0:00:02]} 57. Ne4 {[%clk 0:00:21]}  Nc7 {[%clk 0:00:01]} 58. Nxg5 {[%clk 0:00:21]}  Nb5 {[%clk 0:00:01]} 59. Ne6+ {[%clk 0:00:21]}  Kd5 {[%clk 0:00:01]} 60. g5 {[%clk 0:00:21]}  Nd6 {[%clk 0:00:02]} 61. Kg4 {[%clk 0:00:20]}  e4 {[%clk 0:00:01]} 62. g6 {[%clk 0:00:20]}  Ne8 {[%clk 0:00:01]} 63. Kf4 {[%clk 0:00:16]}  e3 {[%clk 0:00:02]} 64. Nc7+ {[%clk 0:00:14]}  Nxc7 {[%clk 0:00:02]} 65. g7 {[%clk 0:00:15]}  e2 {[%clk 0:00:01]} 66. g8=Q+ {[%clk 0:00:15]}  Kd4 {[%clk 0:00:02]} 67. Qg1+ {[%clk 0:00:13]}  Kc3 {[%clk 0:00:01]} 68. Qe1+ {[%clk 0:00:13]} 1-0

[Event "December 5 Early 2023"]
[Site "https://www.chess.com"]
[Date "2023.12.05"]
[Round "8"]
[White "Gokerkan, Cem Kaan"]
[Black "Hambleton, Aman"]
[Result "1-0"]
[Board "29"]
[TimeControl "180+1"]
[WhiteFideId "6336760"]
[BlackFideId "2606577"]
[WhiteElo "2867"]
[BlackElo "2712"]
[WhiteTeam "TUR"]
[BlackTeam "CAN"]
[WhiteClock "0:00:08"]
[BlackClock "0:00:00"]

1. e4 {[%clk 0:03:00]}  b6 {[%clk 0:02:58]} 2. d4 {[%clk 0:02:59]}  Bb7 {[%clk 0:02:58]} 3. Bd3 {[%clk 0:02:59]}  e6 {[%clk 0:02:58]} 4. Nf3 {[%clk 0:02:59]}  d5 {[%clk 0:02:58]} 5. exd5 {[%clk 0:02:50]}  Qxd5 {[%clk 0:02:59]} 6. Nc3 {[%clk 0:02:48]}  Bb4 {[%clk 0:02:59]} 7. O-O {[%clk 0:02:44]}  Bxc3 {[%clk 0:02:59]} 8. bxc3 {[%clk 0:02:45]}  Nf6 {[%clk 0:03:00]} 9. Ba3 {[%clk 0:02:38]}  Nbd7 {[%clk 0:02:56]} 10. Re1 {[%clk 0:02:36]}  c5 {[%clk 0:02:38]} 11. dxc5 {[%clk 0:01:26]}  Nxc5 {[%clk 0:02:28]} 12. Bb5+ {[%clk 0:01:25]}  Nfd7 {[%clk 0:01:37]} 13. Qe2 {[%clk 0:01:14]}  O-O-O {[%clk 0:01:22]} 14. Rad1 {[%clk 0:00:51]}  Qh5 {[%clk 0:01:19]} 15. Nd4 {[%clk 0:00:41]}  Qxe2 {[%clk 0:01:00]} 16. Bxe2 {[%clk 0:00:42]}  a6 {[%clk 0:01:01]} 17. f3 {[%clk 0:00:42]}  h6 {[%clk 0:00:42]} 18. Rb1 {[%clk 0:00:42]}  Kc7 {[%clk 0:00:40]} 19. Bc1 {[%clk 0:00:43]}  g5 {[%clk 0:00:40]} 20. Be3 {[%clk 0:00:42]}  Nf6 {[%clk 0:00:34]} 21. Bf2 {[%clk 0:00:40]}  Nd5 {[%clk 0:00:33]} 22. Bg3+ {[%clk 0:00:39]}  Nf4 {[%clk 0:00:32]} 23. Bf1 {[%clk 0:00:36]}  Rhe8 {[%clk 0:00:26]} 24. h4 {[%clk 0:00:26]}  Bc8 {[%clk 0:00:16]} 25. Re4 {[%clk 0:00:15]}  Nxe4 {[%clk 0:00:14]} 26. fxe4 {[%clk 0:00:14]}  e5 {[%clk 0:00:11]} 27. Nf3 {[%clk 0:00:15]}  f6 {[%clk 0:00:11]} 28. Bf2 {[%clk 0:00:16]}  Rd6 {[%clk 0:00:09]} 29. c4 {[%clk 0:00:12]}  Ne6 {[%clk 0:00:09]} 30. Ne1 {[%clk 0:00:11]}  Nc5 {[%clk 0:00:09]} 31. Nd3 {[%clk 0:00:10]}  Nxe4 {[%clk 0:00:09]} 32. Be3 {[%clk 0:00:09]}  Rc6 {[%clk 0:00:05]} 33. Nb4 {[%clk 0:00:09]}  Rd6 {[%clk 0:00:02]} 34. Nd5+ {[%clk 0:00:09]}  Rxd5 {[%clk 0:00:02]} 35. cxd5 {[%clk 0:00:10]}  b5 {[%clk 0:00:02]} 36. c4 {[%clk 0:00:11]}  bxc4 {[%clk 0:00:02]} 37. Bxc4 {[%clk 0:00:12]}  Nd6 {[%clk 0:00:02]} 38. Bb3 {[%clk 0:00:12]}  Bd7 {[%clk 0:00:02]} 39. Rc1+ {[%clk 0:00:12]}  Kd8 {[%clk 0:00:02]} 40. Bc5 {[%clk 0:00:11]}  Ke7 {[%clk 0:00:02]} 41. Ba3 {[%clk 0:00:11]}  Rc8 {[%clk 0:00:02]} 42. Re1 {[%clk 0:00:08]}  a5 {[%clk 0:00:01]} 43. Re3 {[%clk 0:00:07]}  a4 {[%clk 0:00:02]} 44. Bd1 {[%clk 0:00:05]}  Rb8 {[%clk 0:00:01]} 45. hxg5 {[%clk 0:00:06]}  hxg5 {[%clk 0:00:02]} 46. Kh2 {[%clk 0:00:05]}  Rb5 {[%clk 0:00:02]} 47. Bf3 {[%clk 0:00:04]}  Rb1 {[%clk 0:00:02]} 48. Rc3 {[%clk 0:00:05]}  Ra1 {[%clk 0:00:01]} 49. Bb4 {[%clk 0:00:04]}  Rxa2 {[%clk 0:00:01]} 50. Rc7 {[%clk 0:00:05]}  Rb2 {[%clk 0:00:02]} 51. Rb7 {[%clk 0:00:06]}  Rb3 {[%clk 0:00:02]} 52. Rb6 {[%clk 0:00:05]}  a3 {[%clk 0:00:01]} 53. Bxd6+ {[%clk 0:00:05]}  Kf7 {[%clk 0:00:02]} 54. Rxb3 {[%clk 0:00:06]}  a2 {[%clk 0:00:02]} 55. Ra3 {[%clk 0:00:07]}  a1=Q {[%clk 0:00:00]} 56. Rxa1 {[%clk 0:00:08]} 1-0

[Event "December 5 Early 2023"]
[Site "https://www.chess.com"]
[Date "2023.12.05"]
[Round "8"]
[White "Xu, Yi"]
[Black "Nigalidze, Gaioz"]
[Result "1/2-1/2"]
[Board "31"]
[TimeControl "180+1"]
[WhiteFideId "8605564"]
[BlackFideId "13603078"]
[WhiteElo "2858"]
[BlackElo "2697"]
[WhiteTeam "CHN"]
[BlackTeam "GEO"]
[WhiteClock "0:00:03"]
[BlackClock "0:00:02"]

1. e4 {[%clk 0:02:57]}  c5 {[%clk 0:02:56]} 2. Nf3 {[%clk 0:02:57]}  d6 {[%clk 0:02:55]} 3. d4 {[%clk 0:02:57]}  cxd4 {[%clk 0:02:55]} 4. Nxd4 {[%clk 0:02:57]}  Nf6 {[%clk 0:02:53]} 5. Nc3 {[%clk 0:02:58]}  a6 {[%clk 0:02:49]} 6. Bd3 {[%clk 0:02:57]}  e6 {[%clk 0:02:47]} 7. O-O {[%clk 0:02:56]}  Be7 {[%clk 0:02:47]} 8. Kh1 {[%clk 0:02:43]}  b5 {[%clk 0:02:45]} 9. a3 {[%clk 0:02:43]}  Bb7 {[%clk 0:02:44]} 10. f4 {[%clk 0:02:42]}  Nbd7 {[%clk 0:02:43]} 11. Nb3 {[%clk 0:02:26]}  Rc8 {[%clk 0:02:40]} 12. Bd2 {[%clk 0:02:26]}  Qb6 {[%clk 0:02:38]} 13. Qe2 {[%clk 0:02:25]}  O-O {[%clk 0:02:35]} 14. Rae1 {[%clk 0:02:25]}  e5 {[%clk 0:02:21]} 15. f5 {[%clk 0:02:03]}  Rfd8 {[%clk 0:02:10]} 16. Na2 {[%clk 0:01:45]}  Nc5 {[%clk 0:02:07]} 17. Ba5 {[%clk 0:01:44]}  Qc6 {[%clk 0:02:05]} 18. Bxd8 {[%clk 0:01:38]}  Rxd8 {[%clk 0:02:05]} 19. Nc3 {[%clk 0:01:33]}  Ncd7 {[%clk 0:01:55]} 20. Rd1 {[%clk 0:01:29]}  h5 {[%clk 0:01:54]} 21. Na5 {[%clk 0:01:24]}  Qb6 {[%clk 0:01:54]} 22. Nxb7 {[%clk 0:01:25]}  Qxb7 {[%clk 0:01:54]} 23. Nd5 {[%clk 0:01:21]}  Nxd5 {[%clk 0:01:53]} 24. exd5 {[%clk 0:01:22]}  Nf6 {[%clk 0:01:53]} 25. c4 {[%clk 0:01:22]}  bxc4 {[%clk 0:01:51]} 26. Bxc4 {[%clk 0:01:22]}  a5 {[%clk 0:01:51]} 27. a4 {[%clk 0:01:10]}  Qb6 {[%clk 0:01:46]} 28. Bb5 {[%clk 0:01:08]}  Ng4 {[%clk 0:01:46]} 29. Rd3 {[%clk 0:01:07]}  Bg5 {[%clk 0:01:42]} 30. h3 {[%clk 0:01:02]}  Ne3 {[%clk 0:01:32]} 31. Re1 {[%clk 0:00:59]}  Nxf5 {[%clk 0:01:27]} 32. Qxh5 {[%clk 0:00:55]}  f6 {[%clk 0:01:25]} 33. Qf3 {[%clk 0:00:46]}  Nd4 {[%clk 0:01:21]} 34. Qg4 {[%clk 0:00:43]}  Qc5 {[%clk 0:01:15]} 35. Bc6 {[%clk 0:00:39]}  Rb8 {[%clk 0:01:10]} 36. Bd7 {[%clk 0:00:31]}  Qxd5 {[%clk 0:00:51]} 37. Rxd4 {[%clk 0:00:30]}  Qxd4 {[%clk 0:00:50]} 38. Be6+ {[%clk 0:00:30]}  Kh7 {[%clk 0:00:21]} 39. Qh5+ {[%clk 0:00:28]}  Bh6 {[%clk 0:00:20]} 40. Rc1 {[%clk 0:00:21]}  Qxb2 {[%clk 0:00:13]} 41. Rc7 {[%clk 0:00:10]}  Qa1+ {[%clk 0:00:11]} 42. Kh2 {[%clk 0:00:10]}  Qf1 {[%clk 0:00:11]} 43. Bf5+ {[%clk 0:00:06]}  Kh8 {[%clk 0:00:10]} 44. Qg6 {[%clk 0:00:02]}  Bf4+ {[%clk 0:00:09]} 45. g3 {[%clk 0:00:02]}  Qf2+ {[%clk 0:00:09]} 46. Kh1 {[%clk 0:00:03]}  Qf3+ {[%clk 0:00:07]} 47. Kh2 {[%clk 0:00:03]}  Rb2+ {[%clk 0:00:07]} 48. Rc2 {[%clk 0:00:02]}  Rxc2+ {[%clk 0:00:04]} 49. Bxc2 {[%clk 0:00:03]}  Qf2+ {[%clk 0:00:04]} 50. Kh1 {[%clk 0:00:03]}  Qf1+ {[%clk 0:00:04]} 51. Kh2 {[%clk 0:00:04]}  Qf2+ {[%clk 0:00:04]} 52. Kh1 {[%clk 0:00:05]}  Qe1+ {[%clk 0:00:02]} 53. Kh2 {[%clk 0:00:02]}  Qe2+ {[%clk 0:00:02]} 54. Kh1 {[%clk 0:00:02]}  Qe1+ {[%clk 0:00:02]} 55. Kh2 {[%clk 0:00:03]}  Qf2+ {[%clk 0:00:02]} 1/2-1/2

[Event "December 5 Early 2023"]
[Site "https://www.chess.com"]
[Date "2023.12.05"]
[Round "8"]
[White "Klekowski, Maciej"]
[Black "Feuerstack, Aljoscha"]
[Result "1-0"]
[Board "33"]
[TimeControl "180+1"]
[WhiteFideId "1132717"]
[BlackFideId "4681932"]
[WhiteElo "2841"]
[BlackElo "2677"]
[WhiteTeam "POL"]
[BlackTeam "GER"]
[WhiteClock "0:00:37"]
[BlackClock "0:00:00"]

1. c4 {[%clk 0:03:00]}  Nf6 {[%clk 0:02:55]} 2. Nc3 {[%clk 0:03:00]}  c5 {[%clk 0:02:53]} 3. g3 {[%clk 0:03:00]}  e6 {[%clk 0:02:51]} 4. Nf3 {[%clk 0:02:59]}  b6 {[%clk 0:02:51]} 5. Bg2 {[%clk 0:02:59]}  Bb7 {[%clk 0:02:51]} 6. O-O {[%clk 0:03:00]}  Be7 {[%clk 0:02:51]} 7. b3 {[%clk 0:02:50]}  O-O {[%clk 0:02:50]} 8. Bb2 {[%clk 0:02:50]}  d6 {[%clk 0:02:48]} 9. d4 {[%clk 0:02:50]}  cxd4 {[%clk 0:02:48]} 10. Qxd4 {[%clk 0:02:51]}  a6 {[%clk 0:02:43]} 11. Rad1 {[%clk 0:02:47]}  Nbd7 {[%clk 0:02:42]} 12. Nh4 {[%clk 0:02:39]}  Bxg2 {[%clk 0:02:40]} 13. Nxg2 {[%clk 0:02:40]}  Qc7 {[%clk 0:02:34]} 14. e4 {[%clk 0:02:33]}  Rac8 {[%clk 0:02:28]} 15. h3 {[%clk 0:02:27]}  Rfd8 {[%clk 0:02:23]} 16. Ne3 {[%clk 0:02:22]}  Qb7 {[%clk 0:02:04]} 17. g4 {[%clk 0:01:58]}  b5 {[%clk 0:01:57]} 18. g5 {[%clk 0:01:52]}  b4 {[%clk 0:01:39]} 19. Ne2 {[%clk 0:01:47]}  Ne5 {[%clk 0:01:36]} 20. f3 {[%clk 0:01:34]}  Nh5 {[%clk 0:01:11]} 21. f4 {[%clk 0:01:28]}  Ng6 {[%clk 0:01:00]} 22. Qd3 {[%clk 0:01:22]}  e5 {[%clk 0:00:43]} 23. f5 {[%clk 0:01:16]}  Ngf4 {[%clk 0:00:43]} 24. Nxf4 {[%clk 0:01:17]}  Nxf4 {[%clk 0:00:43]} 25. Rxf4 {[%clk 0:01:17]}  exf4 {[%clk 0:00:44]} 26. Nd5 {[%clk 0:01:17]}  Bxg5 {[%clk 0:00:43]} 27. f6 {[%clk 0:01:03]}  Re8 {[%clk 0:00:29]} 28. fxg7 {[%clk 0:00:58]}  Re6 {[%clk 0:00:29]} 29. Kh2 {[%clk 0:00:54]}  Rce8 {[%clk 0:00:25]} 30. Rg1 {[%clk 0:00:54]}  h6 {[%clk 0:00:19]} 31. Qf3 {[%clk 0:00:39]}  Rxe4 {[%clk 0:00:17]} 32. Rxg5 {[%clk 0:00:37]}  Re2+ {[%clk 0:00:14]} 33. Rg2 {[%clk 0:00:36]}  Rxg2+ {[%clk 0:00:00]} 34. Qxg2 {[%clk 0:00:37]} 1-0

[Event "December 5 Early 2023"]
[Site "https://www.chess.com"]
[Date "2023.12.05"]
[Round "8"]
[White "Golubev, Mikhail"]
[Black "Vakhlamov, Igor L."]
[Result "0-1"]
[Board "34"]
[TimeControl "180+1"]
[WhiteFideId "14100983"]
[BlackFideId "24126748"]
[WhiteElo "2623"]
[BlackElo "2836"]
[WhiteTeam "UKR"]
[BlackTeam "RUS"]
[WhiteClock "0:00:00"]
[BlackClock "0:00:07"]

1. e4 {[%clk 0:03:00]}  c5 {[%clk 0:02:59]} 2. Nf3 {[%clk 0:03:00]}  e6 {[%clk 0:02:59]} 3. d4 {[%clk 0:03:00]}  cxd4 {[%clk 0:03:00]} 4. Nxd4 {[%clk 0:03:01]}  Nf6 {[%clk 0:03:01]} 5. Nc3 {[%clk 0:03:00]}  Nc6 {[%clk 0:03:01]} 6. a3 {[%clk 0:03:00]}  d5 {[%clk 0:03:00]} 7. Bb5 {[%clk 0:02:58]}  Bd7 {[%clk 0:03:00]} 8. exd5 {[%clk 0:02:56]}  exd5 {[%clk 0:03:01]} 9. O-O {[%clk 0:02:55]}  Be7 {[%clk 0:03:01]} 10. Be2 {[%clk 0:02:54]}  O-O {[%clk 0:03:00]} 11. Bf3 {[%clk 0:02:51]}  Be6 {[%clk 0:02:58]} 12. Re1 {[%clk 0:02:45]}  Qd7 {[%clk 0:02:53]} 13. Bg5 {[%clk 0:02:22]}  h6 {[%clk 0:02:52]} 14. Bh4 {[%clk 0:02:13]}  Rfe8 {[%clk 0:02:53]} 15. Qd2 {[%clk 0:01:52]}  Ne4 {[%clk 0:02:38]} 16. Bxe4 {[%clk 0:01:44]}  dxe4 {[%clk 0:02:35]} 17. Bxe7 {[%clk 0:01:39]}  Qxd4 {[%clk 0:02:34]} 18. Qxd4 {[%clk 0:01:04]}  Nxd4 {[%clk 0:02:35]} 19. Rxe4 {[%clk 0:01:02]}  Nxc2 {[%clk 0:02:28]} 20. Rc1 {[%clk 0:01:02]}  Rxe7 {[%clk 0:02:09]} 21. Rxc2 {[%clk 0:01:02]}  Rd8 {[%clk 0:02:08]} 22. Re1 {[%clk 0:01:00]}  Rc7 {[%clk 0:02:04]} 23. f3 {[%clk 0:00:51]}  Kf8 {[%clk 0:02:01]} 24. Kf2 {[%clk 0:00:46]}  a5 {[%clk 0:02:00]} 25. Ree2 {[%clk 0:00:36]}  Bc4 {[%clk 0:01:54]} 26. Red2 {[%clk 0:00:35]}  Rxd2+ {[%clk 0:01:52]} 27. Rxd2 {[%clk 0:00:36]}  b5 {[%clk 0:01:52]} 28. Rd8+ {[%clk 0:00:26]}  Ke7 {[%clk 0:01:51]} 29. Rb8 {[%clk 0:00:27]}  Rc5 {[%clk 0:01:51]} 30. Ke3 {[%clk 0:00:20]}  Rg5 {[%clk 0:01:12]} 31. g4 {[%clk 0:00:16]}  f6 {[%clk 0:00:53]} 32. h4 {[%clk 0:00:15]}  Re5+ {[%clk 0:00:53]} 33. Kd4 {[%clk 0:00:13]}  h5 {[%clk 0:00:51]} 34. g5 {[%clk 0:00:09]}  Rf5 {[%clk 0:00:45]} 35. Ke4 {[%clk 0:00:09]}  g6 {[%clk 0:00:32]} 36. Rb7+ {[%clk 0:00:07]}  Kd6 {[%clk 0:00:31]} 37. Rb6+ {[%clk 0:00:06]}  Ke7 {[%clk 0:00:29]} 38. Rb7+ {[%clk 0:00:06]}  Ke8 {[%clk 0:00:23]} 39. gxf6 {[%clk 0:00:04]}  Rxf6 {[%clk 0:00:23]} 40. Nxb5 {[%clk 0:00:04]}  Kd8 {[%clk 0:00:09]} 41. Nd4 {[%clk 0:00:02]}  Ba2 {[%clk 0:00:07]} 42. b4 {[%clk 0:00:00]}  axb4 {[%clk 0:00:07]} 0-1

[Event "December 5 Early 2023"]
[Site "https://www.chess.com"]
[Date "2023.12.05"]
[Round "8"]
[White "Bocharov, Dmitry"]
[Black "Maltsevskaya, Aleksandra"]
[Result "1-0"]
[Board "36"]
[TimeControl "180+1"]
[WhiteFideId "4138716"]
[BlackFideId "24174041"]
[WhiteElo "2828"]
[BlackElo "2615"]
[WhiteTeam "RUS"]
[BlackTeam "POL"]
[WhiteClock "0:01:10"]
[BlackClock "0:00:00"]

1. c4 {[%clk 0:03:00]}  Nf6 {[%clk 0:02:33]} 2. g3 {[%clk 0:02:59]}  g6 {[%clk 0:02:30]} 3. Bg2 {[%clk 0:02:59]}  Bg7 {[%clk 0:02:31]} 4. Nc3 {[%clk 0:02:59]}  e5 {[%clk 0:02:24]} 5. Nf3 {[%clk 0:02:57]}  Nc6 {[%clk 0:02:20]} 6. d3 {[%clk 0:02:56]}  O-O {[%clk 0:02:20]} 7. O-O {[%clk 0:02:55]}  d5 {[%clk 0:02:18]} 8. cxd5 {[%clk 0:02:49]}  Nxd5 {[%clk 0:02:19]} 9. Nxe5 {[%clk 0:02:37]}  Nxc3 {[%clk 0:02:07]} 10. Nxc6 {[%clk 0:02:37]}  Nxd1 {[%clk 0:02:07]} 11. Nxd8 {[%clk 0:02:37]}  Nxb2 {[%clk 0:02:06]} 12. Nxb7 {[%clk 0:02:34]}  Bxb7 {[%clk 0:01:07]} 13. Bxb7 {[%clk 0:02:08]}  Rab8 {[%clk 0:01:06]} 14. Bxb2 {[%clk 0:02:08]}  Bxb2 {[%clk 0:01:05]} 15. Bd5 {[%clk 0:02:08]}  Bxa1 {[%clk 0:01:05]} 16. Rxa1 {[%clk 0:02:06]}  Rb2 {[%clk 0:01:04]} 17. Kf1 {[%clk 0:02:00]}  Rfb8 {[%clk 0:01:01]} 18. Bb3 {[%clk 0:01:58]}  a5 {[%clk 0:00:52]} 19. Rc1 {[%clk 0:01:49]}  a4 {[%clk 0:00:23]} 20. Bxa4 {[%clk 0:01:48]}  Rxa2 {[%clk 0:00:13]} 21. Bd7 {[%clk 0:01:43]}  Rbb2 {[%clk 0:00:10]} 22. Bg4 {[%clk 0:01:41]}  Rc2 {[%clk 0:00:11]} 23. Rb1 {[%clk 0:01:38]}  h5 {[%clk 0:00:09]} 24. Bf3 {[%clk 0:01:37]}  Rab2 {[%clk 0:00:08]} 25. Ra1 {[%clk 0:01:37]}  Ra2 {[%clk 0:00:08]} 26. Rd1 {[%clk 0:01:38]}  Kg7 {[%clk 0:00:07]} 27. h4 {[%clk 0:01:36]}  Kf6 {[%clk 0:00:07]} 28. d4 {[%clk 0:01:36]}  Rd2 {[%clk 0:00:06]} 29. Rc1 {[%clk 0:01:34]}  Rac2 {[%clk 0:00:06]} 30. Rxc2 {[%clk 0:01:26]}  Rxc2 {[%clk 0:00:05]} 31. e3 {[%clk 0:01:26]}  Rc1+ {[%clk 0:00:04]} 32. Kg2 {[%clk 0:01:23]}  Rc2 {[%clk 0:00:04]} 33. Be4 {[%clk 0:01:23]}  Rb2 {[%clk 0:00:03]} 34. Bd5 {[%clk 0:01:23]}  Rb5 {[%clk 0:00:03]} 35. Bc6 {[%clk 0:01:21]}  Rb6 {[%clk 0:00:03]} 36. Be4 {[%clk 0:01:20]}  Rb4 {[%clk 0:00:03]} 37. Kf3 {[%clk 0:01:20]}  Rc4 {[%clk 0:00:02]} 38. Bd3 {[%clk 0:01:16]}  Rc3 {[%clk 0:00:03]} 39. Ke2 {[%clk 0:01:16]}  Ra3 {[%clk 0:00:03]} 40. e4 {[%clk 0:01:16]}  Ke7 {[%clk 0:00:01]} 41. Ke3 {[%clk 0:01:14]}  f6 {[%clk 0:00:00]} 42. f4 {[%clk 0:01:10]} 1-0